Cogmind - Beta 16.1 @@@ ROGUE MODE // 2026.03.05 @ 21:31:51 Player: Sen Result: Destroyed by Q6-PHG(R) with Subdweller Laser Performance ------------- Evolutions (0) 0 Regions Visited (3) 600 Robots Destroyed (30) 150 Value Destroyed (712) 712 Prototype IDs (3) 60 Alien Tech Used (0) 0 Bonus (47) 47 TOTAL SCORE: 1569 Bonus ------- Follower Combat Kills 47 Cogmind --------- Core Integrity 0/250 Matter 278/300 Energy 200/200 System Corruption 0% Temperature Cool (6) Movement Treading (560) Ox4 Location -10/Subcaves Parts ------- > --- POWER (1) -------- Subdweller Power Source > --- PROPULSION (2) --- Spiked Treads Aluminum Leg > --- UTILITY (2) ------ Huge Storage Unit Seismic Detector > --- WEAPON (2) ------- Beam Cannon Light Assault Rifle > --- INVENTORY (25) --- Ion Engine Ion Engine Aluminum Leg Aluminum Leg Subdweller Monowheel Scrap Suit Small Storage Unit Subdweller Optics Utility Shielding Light Armor Plating Makeshift Light Armor Plating Small Laser Small Laser Light Assault Rifle Subdweller Machine Gun Subdweller Machine Gun Mining Laser Hammer Scrap Shield Fragment (48) Scrap Shield Fragment (47) Peak State ------------ > --- POWER ------------ Light Ion Engine > --- PROPULSION ------- Makeshift Leg Wheel > --- UTILITY ---------- Huge Storage Unit Seismic Detector > --- WEAPON ----------- Light Assault Rifle Rocket Launcher > --- INVENTORY -------- Ion Engine Ion Engine Light Ion Engine Aluminum Leg Aluminum Leg Aluminum Leg Scrap Suit Small Storage Unit Utility Shielding Light Armor Plating EM Pulse Gun Small Laser Small Laser Beam Cannon Light Assault Rifle Light Assault Rifle Mining Laser Hammer [Rating: 13] Favorites ----------- Power Ion Engine Engine Ion Engine Propulsion Aluminum Leg Treads Spiked Treads Leg Aluminum Leg Wheel Wheel Utility Huge Storage Unit Device Seismic Detector Storage Huge Storage Unit Weapon Light Assault Rifle Energy Gun Small Laser Energy Cannon Beam Cannon Ballistic Gun Light Assault Rifle Launcher Rocket Launcher Impact Weapon Hammer Build | -11 -10 -10 -10 ------- Run | Yrd Mat Min Sub Slots Evolved . | . . . . Power . | . . . . Propulsion . | . . . . Utility . | . . . . Weapon . | . . . . Parts Attached 28 | 7 7 6 8 Power 5 | 1 1 . 3 Engine 5 | 1 1 . 3 Core . | . . . . Reactor . | . . . . Propulsion 9 | 2 3 2 2 Treads 1 | . . . 1 Leg 6 | 2 3 . 1 Wheel 2 | . . 2 . Hover . | . . . . Flight . | . . . . Utility 3 | 1 . 2 . Device 1 | . . 1 . Storage 2 | 1 . 1 . Processor . | . . . . Hackware . | . . . . Protection . | . . . . Artifact . | . . . . Weapon 11 | 3 3 2 3 Energy Gun 3 | 1 1 . 1 Energy Cannon 1 | . . . 1 Ballistic Gun 5 | 2 2 1 . Ballistic Cannon . | . . . . Launcher 1 | . . 1 . Special Weapon . | . . . . Impact Weapon 1 | . . . 1 Slashing Weapon . | . . . . Piercing Weapon . | . . . . Special Melee Weapon . | . . . . Unidentified Prototypes . | . . . . Parts Lost 9 | . 1 . 8 Power 2 | . . . 2 Propulsion 4 | . 1 . 3 Utility . | . . . . Weapon 3 | . . . 3 Highest Loss Streak 3 | . 1 . 3 To Critical Strikes 1 | . . . 1 Average Backups 12 | 2 6 10 16 Power 1 | . 1 1 2 Propulsion 2 | 1 2 2 2 Utility 2 | . . 1 4 Weapon 5 | . 3 5 7 Tool/Special . | . . . . Unused Backups 15 | . 2 1 12 Power 1 | . . . 1 Propulsion 5 | . 2 1 2 Utility 5 | . . . 5 Weapon 4 | . . . 4 Tool/Special . | . . . . Average Slot Usage (%) 92 | . 85 89 98 Engine 13 | . 14 14 13 Treads 1 | . . . 3 Leg 21 | . 28 17 20 Wheel 4 | . . 10 3 Device 8 | . . 4 14 Storage 14 | . 14 14 14 Energy Gun 11 | . 14 13 9 Ballistic Gun 13 | . 14 14 13 Impact Weapon 1 | . . . 2 Peak Build Rating 13 | 6 6 10 13 Average Rating 8 | 4 5 7 11 On Entrance 5 | . 6 6 9 Avg Prop Armor Cover (%) 8 | . . 10 8 Naked Turns . | . . . . Heaviest Build 91 | 12 13 91 90 Greatest Support 30 | 20 20 20 30 Greatest Overweight (x) 8 | . 1 8 8 Average Overweight (x) 1 | . . 1 2 Largest Inventory Capacity 25 | 8 8 25 25 Average Capacity 17 | 7 8 14 25 Most Carried 21 | 4 8 18 21 Average Carried 13 | 2 6 10 18 Final Capacity 25 | 8 8 25 25 Final Carried 21 | 4 8 18 21 Class Distribution -------------------- 64% | Scavenger-Mutant 35% | Mutant Dominant Class ---------------- Mutant | -10/Materials Scavenger-Mutant | -10/Mines Scavenger-Mutant | -10/Subcaves Resources | -11 -10 -10 -10 ----------- Run | Yrd Mat Min Sub Matter Collected 689 | 214 179 71 225 Remotely . | . . . . Salvage Created 913 | . 496 151 266 Parts 55 | . 28 13 14 Haulers Intercepted . | . . . . Recyclers Shooed 1 | . 1 . . Parts Field Recycled . | . . . . Retrieved Matter . | . . . . Parts Self-Destructed 9 | . . . 9 Prevented . | . . . . Parts Restored . | . . . . Kills | -11 -10 -10 -10 ------- Run | Yrd Mat Min Sub Combat Hostiles Destroyed 22 | . 10 4 8 Guns 17 | . 9 4 4 Cannons 2 | . . . 2 AOE 3 | . 1 . 2 Classes Destroyed 8 | . 5 2 1 Worker 4 | . 2 2 . Tunneler 1 | . . 1 . Recycler 2 | . 2 . . Watcher 1 | . 1 . . Swarmer 7 | . 3 3 1 Grunt 7 | . 7 . . Sentry 1 | . . 1 . Subdweller 7 | . . . 7 Best Kill Streak 5 | . 4 5 3 Combat Bots Only 3 | . 2 3 3 Max Kills in Single Turn 2 | . 2 1 1 Gunslinging . | . . . . Exploded 1 | . 1 . 1 Melee . | . . . . Uniques/NPCs Destroyed . | . . . . Combat | -11 -10 -10 -10 -------- Run | Yrd Mat Min Sub Hostile Shots Fired 116 | . 41 14 61 Missed 41 | . 16 4 21 Hits 75 | . 25 10 40 Projectile 75 | . 25 10 40 Critical Strikes 2 | . . 1 1 Damage Taken 1302 | . 360 114 828 Core 267 | . 50 23 194 Absorbed by Shields . | . . . . Core Remaining (%) 100 | 100 . . . Volleys Fired 93 | . 42 12 39 Largest 2 | . 2 2 2 Hottest 80 | . 60 60 80 Shots Fired 183 | . 84 24 75 Gun 165 | . 84 21 60 Cannon 10 | . . . 10 Launcher 8 | . . 3 5 Special . | . . . . Kinetic 92 | . 42 12 38 Thermal 69 | . 42 9 18 Explosive 8 | . . 3 5 Electromagnetic 14 | . . . 14 Robot Hit Streak 14 | . 14 6 10 Robot Miss Streak 4 | . 4 2 3 Penetration Max . | . . . . Secondary Targets 1 | . . . 1 Max Gunslinging Chain 1 | . . . 1 Shots Hit Robots 112 | . 52 12 48 Core Hits 54 | . 26 10 18 Critical Kills . | . . . . Critical Parts Destroyed . | . . . . Critical Strikes 1 | . . . 1 Corrupt 1 | . . . 1 Melee Attacks 7 | . . . 7 Impact 7 | . . . 7 Slashing . | . . . . Piercing . | . . . . Sneak Attacks . | . . . . Combat Hostiles . | . . . . Follow-up Attacks . | . . . . Damage Inflicted 1852 | . 712 146 994 Guns 946 | . 503 113 330 Cannons 125 | . . . 125 Explosions 781 | . 209 33 539 Melee . | . . . . Ramming . | . . . . Kinetic 445 | . 226 31 188 Thermal 738 | . 486 82 170 Explosive 572 | . . 33 539 Electromagnetic 97 | . . . 97 Impact . | . . . . Slashing . | . . . . Piercing . | . . . . Highest Corruption . | . . . . Average Corruption . | . . . . Corruption Purged . | . . . . Corruption Blocked . | . . . . Overload Shots . | . . . . Overflow Damage 179 | . 179 . . Projectiles . | . . . . Explosions 179 | . 179 . . Melee . | . . . . Knockbacks . | . . . . Impact . | . . . . Kinetic . | . . . . Secondary . | . . . . Self-Inflicted Damage 112 | . 112 . . Shots 1 | . 1 . . Rammed . | . . . . Targets Rammed . | . . . . Kicked . | . . . . Crushed . | . . . . Highest Temperature 69 | . 64 69 6 Average Temperature 24 | . 25 28 3 Received Heat Transfer 291 | . 96 45 150 Siege Activations . | . . . . Martial Activations . | . . . . Shielding Activations . | . . . . Robots Disrupted . | . . . . Combat Hostiles . | . . . . Robots Corrupted . | . . . . Combat Hostiles . | . . . . Parts Fried . | . . . . Impact Corruptions . | . . . . Robots Melted . | . . . . Combat Hostiles . | . . . . Parts Melted . | . . . . Heat Transferred 1309 | . 750 200 359 Parts Sabotaged . | . . . . Parts Stolen . | . . . . Parts Stripped . | . . . . Power Chain Reactions . | . . . . Alert | -11 -10 -10 -10 ------- Run | Yrd Mat Min Sub Maximum Alert Level 1 | . 1 . . Low Security (%) 88 | 100 66 100 . Level 1 11 | . 33 . . Level 2 . | . . . . Level 3 . | . . . . Level 4 . | . . . . Level 5 . | . . . . High Security . | . . . . Max Security . | . . . . Peak Influence 251 | . 251 148 . Initial 78 | . . 78 . Average 67 | . 127 37 . Influence Increases 645 | . 410 157 78 Destroy 0b10 Robot/C 360 | . 200 100 60 Destroy 0b10 Robot/NC 40 | . 25 15 . Destroy Leader 62 | . 42 10 10 Allied During Kill 17 | . . 9 8 Successful Hack 18 | . 18 . . Disable Machine 60 | . 60 . . Destroy Structure 58 | . 35 23 . Lose Combat Pursuer 30 | . 30 . . Influence Decreases 645 | . 210 357 78 Entered New Map 122 | . . 122 . Time Decay 485 | . 200 235 50 Lost Part 20 | . 10 . 10 Lost Ally 18 | . . . 18 Squads Dispatched 4 | . 4 . . Investigation 1 | . 1 . . Extermination . | . . . . Reinforcement 3 | . 3 . . Assault . | . . . . Garrison . | . . . . Intercept . | . . . . Searches Triggered . | . . . . Construction Impeded . | . . . . Haulers Reinforced . | . . . . Active Scanning Responses . | . . . . Cargo Convoy Interrupts . | . . . . Stealth | -11 -10 -10 -10 --------- Run | Yrd Mat Min Sub Distress Signals 1 | . 1 . . Communications Jammed . | . . . . Distress Signals . | . . . . Times Spotted 34 | . 19 5 10 Peak Tracking Total 5 | . 5 3 3 Tactical Retreats 2 | . 2 . . Traps | -11 -10 -10 -10 ------- Run | Yrd Mat Min Sub Traps Triggered . | . . . . Indirectly . | . . . . Trap Hack Attempts . | . . . . Triggered . | . . . . Disarmed . | . . . . Reprogrammed . | . . . . Reused . | . . . . Traps Extracted . | . . . . Installed . | . . . . Triggered . | . . . . Machines | -11 -10 -10 -10 ---------- Run | Yrd Mat Min Sub Machines Disabled 6 | . 4 2 . Max in Single Turn 4 | . 4 2 . Machines Repaired . | . . . . Machines Dismantled . | . . . . Machines Sabotaged . | . . . . Overloaded Fab Kills . | . . . . Hacking | -11 -10 -10 -10 --------- Run | Yrd Mat Min Sub Machines Accessed 3 | . 3 . . Terminals 2 | . 2 . . Fabricators . | . . . . Repair Stations . | . . . . Recycling Units 1 | . 1 . . Scanalyzers . | . . . . Garrison Access . | . . . . Total Hacks 7 | . 7 . . Successful 3 | . 3 . . Failed 4 | . 4 . . Catastrophic 1 | . 1 . . Database Lockouts . | . . . . Manual . | . . . . Terminals 5 | . 5 . . Fabricators . | . . . . Repair Stations . | . . . . Recycling Units 2 | . 2 . . Scanalyzers . | . . . . Garrison Access . | . . . . Terminal Hacks 2 | . 2 . . Prototype ID Bank 1 | . 1 . . Emergency Access Points 1 | . 1 . . Fabricator Hacks . | . . . . Repair Station Hacks . | . . . . Recycling Unit Hacks 1 | . 1 . . Report Inventory 1 | . 1 . . Scanalyzer . | . . . . Garrison Access Hacks . | . . . . Unauthorized Hacks . | . . . . Terminals . | . . . . Fabricators . | . . . . Repair Stations . | . . . . Recycling Units . | . . . . Scanalyzers . | . . . . Garrison Access . | . . . . Data Cores Recovered . | . . . . Used . | . . . . Hacking Detections 2 | . 2 . . Full Trace Events 1 | . 1 . . Feedback Events . | . . . . Feedback Blocked . | . . . . Robot Schematics Acquired . | . . . . Robots Built . | . . . . Authchips . | . . . . Time . | . . . . Total Robot Build Rating . | . . . . Part Schematics Acquired . | . . . . Parts Built . | . . . . Authchips . | . . . . Time . | . . . . Total Part Build Rating . | . . . . Part Studies Acquired . | . . . . Parts Repaired . | . . . . Time . | . . . . Parts Recycled . | . . . . Recycled Matter . | . . . . Retrieved Matter . | . . . . Retrieved Components . | . . . . Parts Scanalyzed . | . . . . Part Schematics Acquired . | . . . . Parts Damaged . | . . . . Bothacking | -11 -10 -10 -10 ------------ Run | Yrd Mat Min Sub Used RIF Installer . | . . . . Robots Hacked . | . . . . Non-combat . | . . . . Combat . | . . . . Robot Hacks Applied . | . . . . Relay Couplers Released . | . . . . Fabnet Peak Effective % . | . . . . Robots Rewired . | . . . . Allies Hacked . | . . . . Hacks Repelled . | . . . . Allies | -11 -10 -10 -10 -------- Run | Yrd Mat Min Sub Total Allies 3 | . . 3 . Largest Group 3 | . . 3 2 Highest-Rated Group 73 | . . 73 42 Highest-Rated Ally 31 | . . 31 31 Total Orders . | . . . . Ally Attacks 18 | . . 4 14 Total Damage 291 | . . 84 207 Kills 3 | . . 1 2 Allies Corrupted . | . . . . Allies Melted . | . . . . Intel | -11 -10 -10 -10 ------- Run | Yrd Mat Min Sub Active Infowar (turns) 1475 | . . 282 1193 Seismic 1475 | . . 282 1193 Robot Analysis Total . | . . . . Derelict Logs Recovered 2 | . . 2 . Drone Launches . | . . . . Drone Recoveries . | . . . . Exploration | -11 -10 -10 -10 ------------- Run | Yrd Mat Min Sub Turns Passed 2596 | 63 496 844 1193 Spaces Moved 1233 | 43 287 549 354 Core 4 | 4 . . . Treads 51 | . . . 51 Legs 918 | 39 287 358 234 Wheels 260 | . . 191 69 Hover . | . . . . Flight . | . . . . Fastest Speed 50 | 50 120 95 140 Average Speed 171 | 113 120 127 288 Slowest Speed 560 | 120 190 200 560 Overloaded Moves . | . . . . Propulsion Burnouts . | . . . . Robots Hopped . | . . . . Potential Cave-ins . | . . . . Cave-ins Triggered . | . . . . Exploration Rate (%) 41 | 3 43 95 23 Regions Visited 3 Branch Regions 2 Pre-discovered Areas 1 | . . . 1 Known Exits Taken . | . . . . Unknown Exits Taken 3 | 1 1 1 . Scrap Searched 1 | . . 1 . Spaces Dug . | . . . . Terrain Destroyed 93 | . 39 28 26 Melee . | . . . . Projectile . | . . . . AOE 93 | . 39 28 26 Terrain Rammed . | . . . . Walls Destroyed . | . . . . Machines Disabled . | . . . . Actions | -11 -10 -10 -10 --------- Run | Yrd Mat Min Sub Total 1524 | 53 363 667 441 Wait 123 | . 15 88 20 Move 1230 | 42 286 548 354 Hop . | . . . . Pick Up 27 | 4 6 9 8 Fast Attach 12 | 6 1 3 2 Attach 7 | . 1 . 6 Detach 1 | . . 1 . Swap 15 | 1 5 4 5 Drop 9 | . 7 2 . Fire 93 | . 42 12 39 Melee 7 | . . . 7 Ram . | . . . . Kick . | . . . . Crush . | . . . . Escape Stasis . | . . . . Rewire . | . . . . Trap . | . . . . Miscellaneous . | . . . . Route ------- -11/Scrapyard -10/Materials (discovered 2 exits: [*Mat] / [*Min]) -10/Mines (discovered 3 exits: [*Mat x2] / [*Sub]) -10/Subcaves History --------- Turn | Location | Event 16 | -11/Scrapyard | Discovered new exit (range 16) 64 | -11/Scrapyard | Entered Materials 316 | -10/Materials | Build established: Mutant 373 | -10/Materials | Discovered new exit (range 10) 516 | -10/Materials | Discovered new exit (range 16) 560 | -10/Materials | Entered Mines 614 | -10/Mines | Discovered new exit (range 10) 619 | -10/Mines | Learned Materials trap positions 665 | -10/Mines | Received a Rocket Launcher from a helpful Derelict 824 | -10/Mines | Discovered new exit (range 6) 895 | -10/Mines | Build established: Scavenger-Mutant 926 | -10/Mines | Discovered new exit (range 9) 964 | -10/Mines | Received a Mining Laser from a helpful Derelict 1143 | -10/Mines | Found a Scrap Suit stashed away for nefarious purposes 1146 | -10/Mines | Found Scrap Suit 1185 | -10/Mines | Joined a pair of Derelicts in attacking an 0b10 outpost 1404 | -10/Mines | Entered Subcaves 1404 | -10/Subcaves | Accompanied by 2 allies 1405 | -10/Subcaves | Approached by a straggling Scientist 1409 | -10/Subcaves | Led the pair of lost Derelicts to an unsafe place 1462 | -10/Subcaves | Learned location of Zion (-7) 1462 | -10/Subcaves | Met a Zionite searching for "candidates" 1513 | -10/Subcaves | Core integrity fell below 50% 1577 | -10/Subcaves | Lost 3 parts (1p1n1w) 2178 | -10/Subcaves | Shifting Twisted Machinery released Mak. Light Armor Plating 2181 | -10/Subcaves | Shifting Twisted Machinery released Sub. Machine Gun 2218 | -10/Subcaves | Core integrity fell below 20% 2597 | -10/Subcaves | Destroyed by Q6-PHG(R) with Subdweller Laser Last Messages --------------- 02312_ Subatomizers dissect the Sub. Optics. DQ-0BO(c): "I think it's somewhere southeast of here" 02325_ Acquired Sub. Power Source. 02327_ Acquired 10 matter. 02334_ Subatomizers dissect the Sub. Optics. 02370_ Acquired Sub. Machine Gun. DQ-0BO(c): "I think it's somewhere southeast of here" 02465_ Subatomizers dissect the Corrupted Sub. Laser. DQ-0BO(c): "I think it's somewhere southeast of here" 02490_ Subatomizers dissect the Corrupted Sub. Laser. 02525_ Subatomizers dissect the Corrupted Disposable Heat Sink. DQ-0BO(c): "I think it's somewhere southeast of here" Map ----- +----------------------------------------------------+ | | | | | | | | | | | | | | | | | ?????????????????????????????????????????????????? | | ?????????????????????????????????????????????????? | | ?????????????????????????????????????????????????? | | ?????????????????????????????????????????????????? | | ?????????????????????????????????????????????????? | | ?????????????????????????????????????????????????? | | ?????????????????????????????????????????????????? | | ?????????????????????????????????????????????????? | | ?????????????????????????????????????????????????? | | ?????????????????????????????????????????????????? | | ?????????????????????????????????????????????????? | | ?????????????????????????????????????????????????? | | ?????????????????????????????????????????????????? | | ?????????????????????????????????????????????????? | | ????????????######????????###????????????????????? | | ?##????####?# ######?## ## # #####???????????? | | ## ##??# ## c### #?????????? | | # ##?# ## @ R #?????????? | | # #??# ##" """"" ###### #?????????? | | # ##### ### " """"" ###?????????????????????? | | # #?# ## """"""" #???????????????????????? | | ###?# ###"""""" ??????????????????????? | | # #???## #?##"""" " ?????????????????????? | | ## #???## ##### """ " "????????????????????? | | ?# ##### "" ##?# """##"????????????????????? | | ?# ## "" #??? ""??##???????????????????? | | ?# "" #???#?"???????????????????????? | | ## ! ["" ##????????????????????????????? | | # % "" ###??????????????????????????? | | #### ##%&"" "" ??????????????????????????? | | ## #### "## """""" "??????????????????????????? | | ####### """"""" ???????????????????????????? | | ???### """"" ????????????????????????????? | | ??## """""" ????????????????????????????? | | ### """" ???????????????????????????? | | # ## """"" ???????????????????????????? | | ## ?## """"""""##?????????????????????????????? | | ## ???# " """"""#??????????????????????????????? | | ## ?? " """ " ??????????????????????????????? | | ## ? """## ??????????????????????????????? | | ?## """#?# ??????????????????????????????? | | ??## ## ""##??# ??????????????????????????????? | +----------------------------------------------------+ Best States ------------- Heat Dissipation 25 Energy Generation 15 Energy Capacity 250 Matter Stores 300 Matter Capacity 300 Sight Range 16 Terrain Scan Density 10 Evasion (%) 55 Recoil Reduction 1 Item Schematics ----------------- None Robot Schematics ------------------ None Fabricated ------------ Nothing Repaired ---------- Nothing Studied --------- None Alien Tech Used ----------------- None Achievements -------------- None Challenges ------------ None Game ------ Seed MobileFlightCartridge Manual? 0 Play Time 00:19:49 Cumulative 137.0 hours Start 2026.03.05 @ 21:14:16 End 2026.03.05 @ 21:31:51 Sessions 1 Manual Loads 0 Difficulty Rogue Special Mode None Game No. 114 Rogue 114 Adventurer 0 Explorer 0 Win Type - Total 0 Types 0/0/0/0/0/0/0/0/0/0 Lore% 53 Gallery% 47 Achievement% 36 Wizard Run 0 Options --------- Layout 1 ASCII 1 Keyboard 1 Movement Numpad Keybinds 0 Fullscreen 1 Font 24/Smallcaps Map View 50x35 Zoom Use 0% Tactical HUD 1 Map Filters NONE Filters NONE Steam 1 RUN: 59c38e31-a1af-4146-a2a4-5d86af6815fe